[Event "4NCL 2021-22"]
[Site "England"]
[Date "2022.02.12"]
[Round "3.78"]
[White "Merriman, James"]
[Black "Franco, Gaston"]
[Result "1/2-1/2"]
[ECO "D35"]
[WhiteElo "1861"]
[BlackElo "2037"]
[Annotator "NA"]
[PlyCount "50"]
[EventDate "2021.11.27"]
[EventType "team-tourn"]
[EventCountry "ENG"]
[SourceTitle "playchess.com"]
[Source "ChessBase"]
[SourceQuality "1"]
[TimeControl "40/6000+30:3000+30"]

1. d4 {[%emt 0:00:07]} d5 {[%emt 0:00:07]} 2. c4 {[%emt 0:00:04]} e6 {[%emt 0:00:08]} 3. Nc3 {[%emt 0:00:04]} Be7 {[%emt 0:00:05]} 4. cxd5 {[%emt 0:01:03]} exd5 {[%emt 0:00:05]} 5. Bf4 {[%emt 0:00:27]} Nf6 {[%emt 0:00:12]} 6. e3 {[%emt 0:00:26]} c6 {[%emt 0:00:28]} 7. Bd3 {[%emt 0:00:09]} O-O {[%emt 0:00:24]} 8. Qc2 {[%emt 0:00:42]} Nbd7 {[%emt 0:01:31]} 9. Nf3 {[%emt 0:00:09]} Re8 {[%emt 0:00:14]} 10. O-O {[%emt 0:00:22]} Nf8 {[%emt 0:00:11]} 11. Rab1 {[%emt 0:11:03]} Ne6 {[%emt 0:04:32]} 12. Be5 {[%emt 0:02:12]} g6 {[%emt 0:02:11]} 13. b4 {[%emt 0:01:35]} Ng7 {[%emt 0:04:37]} 14. b5 {[%emt 0:01:44]} Bf5 {[%emt 0:09:11]} 15. bxc6 {[%emt 0:01:50]} bxc6 {[%emt 0:02:16]} 16. Bxf5 {[%emt 0:08:24]} Nxf5 {[%emt 0:01:22]} 17. Na4 {[%emt 0:01:36]} Rc8 {[%emt 0:08:10]} 18. Rb7 {[%emt 0:04:05]} Ne4 {[%emt 0:26:11]} 19. Rxa7 {[%emt 0:02:48]} f6 {[%emt 0:08:01]} 20. Bf4 {[%emt 0:02:09]} g5 {[%emt 0:07:23]} 21. Bg3 {[%emt 0:00:35]} h5 {[%emt 0:00:09]} 22. h3 {[%emt 0:18:00]} Nfxg3 {[%emt 0:06:51]} 23. fxg3 {[%emt 0:00:13]} Bd6 {[%emt 0:00:07]} 24. Nc3 {[%emt 0:04:17]} Bb8 {[%emt 0:16:13]} 25. Nxe4 dxe4 {[%emt 0:00:30]} 1/2-1/2

[Event "4NCL 2021-22"]
[Site "England"]
[Date "2022.02.12"]
[Round "3.79"]
[White "Kelmendi, Bajrush"]
[Black "Metcalfe, Charlie P"]
[Result "1-0"]
[ECO "A22"]
[WhiteElo "2086"]
[BlackElo "1792"]
[Annotator "ChessBase"]
[PlyCount "93"]
[EventDate "2021.11.27"]
[EventType "team-tourn"]
[EventCountry "ENG"]
[SourceTitle "playchess.com"]
[Source "ChessBase"]
[SourceQuality "1"]
[TimeControl "40/6000+30:3000+30"]

1. c4 e5 2. Nc3 Nf6 3. e4 Bc5 4. d3 O-O 5. Be2 c6 6. g4 d6 7. h4 Be6 8. Be3 Bxe3 9. fxe3 Qb6 10. g5 Qxb2 11. Rc1 Nfd7 12. Nf3 Nb6 13. O-O N8d7 14. Rf2 Qb4 15. Qc2 d5 16. Rb1 Qa5 17. exd5 cxd5 18. Rb5 Qa3 19. cxd5 Bg4 20. e4 Rac8 21. Rb3 Qc5 22. Qd2 Rc7 23. Kg2 {[%emt 0:00:07]} Rfc8 {[%emt 0:01:11]} 24. Nb5 {[%emt 0:02:05]} Qc2 {[%emt 0:18:13]} 25. Nxc7 {[%emt 0:00:29]} Rxc7 {[%emt 0:00:16]} 26. Qxc2 {[%emt 0:00:57]} Rxc2 {[%emt 0:00:02]} 27. Ng1 {[%emt 0:00:19]} Bxe2 {[%emt 0:01:03]} 28. Rxe2 {[%emt 0:00:08]} Rc1 {[%emt 0:01:28]} 29. Nf3 {[%emt 0:00:19]} Kf8 {[%emt 0:00:12]} 30. Rbb2 {[%emt 0:00:50]} Ke7 {[%emt 0:00:21]} 31. Rbc2 {[%emt 0:01:25]} Rxc2 {[%emt 0:00:21]} 32. Rxc2 {[%emt 0:00:08]} Kd6 33. Kf2 {[%emt 0:00:31]} Na4 {[%emt 0:00:40]} 34. Ke3 {[%emt 0:00:20]} Nac5 {[%emt 0:00:17]} 35. d4 {[%emt 0:00:24]} Na6 {[%emt 0:01:00]} 36. dxe5+ {[%emt 0:00:44]} Nxe5 {[%emt 0:00:04]} 37. Nd4 {[%emt 0:00:17]} Kd7 {[%emt 0:01:44]} 38. a3 {[%emt 0:00:25]} Ng6 {[%emt 0:00:42]} 39. h5 {[%emt 0:00:25]} Ne5 {[%emt 0:00:06]} 40. Nb5 {[%emt 0:00:31]} g6 {[%emt 0:01:12]} 41. hxg6 {[%emt 0:00:20]} hxg6 {[%emt 0:01:27]} 42. Nxa7 {[%emt 0:00:16]} Nc7 {[%emt 0:00:06]} 43. a4 {[%emt 0:00:14]} Kd6 {[%emt 0:00:47]} 44. Nb5+ {[%emt 0:00:21]} Nxb5 {[%emt 0:00:02]} 45. axb5 {[%emt 0:00:16]} Ng4+ {[%emt 0:00:15]} 46. Kd4 {[%emt 0:00:20]} Ne5 {[%emt 0:00:05]} 47. Rf2 {[%emt 0:00:17]} 1-0

[Event "4NCL 2021-22"]
[Site "England"]
[Date "2022.02.12"]
[Round "3.80"]
[White "Jakhria, Kushal"]
[Black "Macleod, Andrew"]
[Result "*"]
[ECO "E07"]
[WhiteElo "1328"]
[BlackElo "1640"]
[Annotator "NA"]
[PlyCount "57"]
[EventDate "2021.11.27"]
[EventType "team-tourn"]
[EventCountry "ENG"]
[SourceTitle "playchess.com"]
[Source "ChessBase"]
[SourceQuality "1"]
[TimeControl "40/6000+30:3000+30"]

1. d4 {[%emt 2:58:13]} Nf6 {[%emt 0:00:07]} 2. c4 {[%emt 0:00:06]} e6 {[%emt 0:00:15]} 3. Nf3 {[%emt 0:00:06]} b6 {[%emt 0:00:07]} 4. g3 {[%emt 0:00:22]} Bb7 {[%emt 0:00:19]} 5. Bg2 {[%emt 0:00:23]} Be7 {[%emt 0:00:40]} 6. O-O {[%emt 0:00:59]} O-O {[%emt 0:00:10]} 7. Nc3 {[%emt 0:00:44]} d5 {[%emt 0:00:21]} 8. b3 {[%emt 0:01:41]} Nbd7 {[%emt 0:01:41]} 9. Qc2 {[%emt 0:01:28]} c5 {[%emt 0:02:26]} 10. Rd1 {[%emt 0:00:36]} Qc7 {[%emt 0:01:10]} 11. Bf4 {[%emt 0:01:09]} Bd6 {[%emt 0:03:28]} 12. Nb5 {[%emt 0:00:28]} Qc6 {[%emt 0:00:41]} 13. Bxd6 {[%emt 0:00:30]} Rfc8 {[%emt 0:00:36]} 14. Bf4 {[%emt 0:00:53]} Ne4 {[%emt 0:00:35]} 15. Ne1 {[%emt 0:01:15]} cxd4 {[%emt 0:02:09]} 16. Nxd4 {[%emt 0:01:32]} Qc5 {[%emt 0:00:36]} 17. Bxe4 {[%emt 0:02:42]} dxe4 {[%emt 0:00:08]} 18. Nxe6 {[%emt 0:00:20]} fxe6 {[%emt 0:00:30]} 19. Rxd7 {[%emt 0:00:14]} Bc6 {[%emt 0:00:40]} 20. Rdd1 {[%emt 0:00:19]} Qf5 {[%emt 0:01:05]} 21. Ng2 {[%emt 0:00:35]} g5 {[%emt 0:01:03]} 22. Be3 {[%emt 0:00:20]} Rf8 {[%emt 0:01:51]} 23. Rd6 {[%emt 0:01:10]} Rac8 {[%emt 0:00:45]} 24. Rad1 {[%emt 0:00:35]} h5 {[%emt 0:00:58]} 25. Qd2 {[%emt 0:00:14]} Kh7 {[%emt 0:03:04]} 26. Rxc6 {[%emt 0:00:23]} Rxc6 {[%emt 0:00:58]} 27. Qd7+ {[%emt 0:00:12]} Rf7 {[%emt 0:00:13]} 28. Qxc6 {[%emt 0:00:12]} e5 {[%emt 0:02:16]} 29. Rd6 {[%emt 0:00:23]} *

[Event "4NCL 2021-22"]
[Site "England"]
[Date "2022.02.13"]
[Round "4.13"]
[White "Golding, Alex"]
[Black "Griffiths, Ryan Rhys"]
[Result "1/2-1/2"]
[ECO "B87"]
[WhiteElo "2331"]
[BlackElo "2352"]
[Annotator "ChessBase"]
[PlyCount "202"]
[EventDate "2021.11.27"]
[EventType "team-tourn"]
[EventCountry "ENG"]
[SourceTitle "playchess.com"]
[Source "ChessBase"]
[SourceQuality "1"]
[TimeControl "40/6000+30:3000+30"]

1. e4 {[%emt 0:00:01]} c5 {[%emt 0:03:38]} 2. Nf3 {[%emt 0:00:05]} d6 {[%emt 0:00:05]} 3. d4 {[%emt 0:00:02]} cxd4 {[%emt 0:00:05]} 4. Nxd4 {[%emt 0:00:01]} Nf6 {[%emt 0:00:01]} 5. Nc3 {[%emt 0:00:07]} a6 {[%emt 0:00:05]} 6. Bc4 {[%emt 0:00:14]} b5 {[%emt 0:00:09]} 7. Bb3 {[%emt 0:01:31]} e6 {[%emt 0:00:07]} 8. a3 {[%emt 0:01:49]} Bb7 {[%emt 0:01:52]} 9. O-O {[%emt 0:01:30]} Nbd7 {[%emt 0:01:18]} 10. Re1 {[%emt 0:24:05]} Nc5 {[%emt 0:03:31]} 11. Bd5 {[%emt 0:03:51]} Qc7 {[%emt 0:06:13]} 12. Bxb7 {[%emt 0:00:14]} Qxb7 {[%emt 0:00:28]} 13. Qe2 {[%emt 0:03:35]} Be7 {[%emt 0:00:27]} 14. b4 {[%emt 0:01:31]} Ncd7 {[%emt 0:00:23]} 15. a4 {[%emt 0:00:04]} bxa4 {[%emt 0:00:46]} 16. Nxa4 {[%emt 0:00:32]} O-O {[%emt 0:38:37]} 17. c4 {[%emt 0:01:51]} Rfc8 {[%emt 0:01:59]} 18. Bd2 {[%emt 0:03:25]} Ne5 {[%emt 0:04:18]} 19. Nb2 {[%emt 0:03:36]} Bd8 {[%emt 0:16:54]} 20. Nf3 {[%emt 0:04:07]} Nxf3+ {[%emt 0:01:08]} 21. Qxf3 {[%emt 0:00:25]} Nd7 {[%emt 0:00:56]} 22. Bc3 {[%emt 0:00:14]} Bf6 {[%emt 0:01:09]} 23. Bxf6 {[%emt 0:00:18]} Nxf6 {[%emt 0:00:18]} 24. e5 {[%emt 0:01:03]} Qxf3 {[%emt 0:01:01]} 25. gxf3 {[%emt 0:00:04]} dxe5 {[%emt 0:00:06]} 26. Rxe5 {[%emt 0:00:18]} Rab8 {[%emt 0:02:21]} 27. Ra4 {[%emt 0:00:08]} Nd7 {[%emt 0:01:36]} 28. Rea5 {[%emt 0:00:31]} Nb6 {[%emt 0:03:45]} 29. Ra2 {[%emt 0:02:22]} Nxc4 {[%emt 0:00:36]} 30. Rxa6 {[%emt 0:00:26]} Ne5 {[%emt 0:04:14]} 31. f4 {[%emt 0:04:14]} Nc6 {[%emt 0:00:57]} 32. Nd3 {[%emt 0:00:05]} Nxb4 {[%emt 0:00:44]} 33. Nxb4 {[%emt 0:00:03]} Rxb4 {[%emt 0:00:08]} 34. Ra8 {[%emt 0:00:20]} Rf8 {[%emt 0:03:25]} 35. R2a4 {[%emt 0:00:08]} Rxa4 {[%emt 0:00:30]} 36. Rxa4 {[%emt 0:00:04]} g6 {[%emt 0:01:35]} 37. Kg2 {[%emt 0:00:22]} Kg7 {[%emt 0:00:26]} 38. Kg3 {[%emt 0:00:06]} Rd8 {[%emt 0:00:16]} 39. Ra3 {[%emt 0:00:06]} Rd1 {[%emt 0:00:26]} 40. h3 {[%emt 0:03:08]} Kf6 {[%emt 0:02:35]} 41. Ra7 {[%emt 0:50:07]} h6 {[%emt 0:50:33]} 42. Rb7 {[%emt 0:01:56]} Rd3+ {[%emt 0:04:08]} 43. f3 {[%emt 0:01:27]} g5 {[%emt 0:01:17]} 44. fxg5+ {[%emt 0:00:04]} hxg5 {[%emt 0:00:09]} 45. Rb4 {[%emt 0:00:02]} e5 {[%emt 0:01:54]} 46. h4 {[%emt 0:00:19]} gxh4+ {[%emt 0:01:04]} 47. Rxh4 {[%emt 0:00:05]} Kf5 {[%emt 0:00:25]} 48. Rh5+ {[%emt 0:00:04]} Ke6 {[%emt 0:00:08]} 49. Kf2 {[%emt 0:00:13]} f5 {[%emt 0:01:22]} 50. Rh8 {[%emt 0:00:06]} f4 {[%emt 0:01:02]} 51. Re8+ {[%emt 0:00:05]} Kf6 {[%emt 0:00:30]} 52. Rf8+ {[%emt 0:00:04]} Ke7 {[%emt 0:00:19]} 53. Ra8 {[%emt 0:00:07]} Rd2+ {[%emt 0:03:17]} 54. Ke1 {[%emt 0:00:05]} Rd8 {[%emt 0:01:22]} 55. Ra6 {[%emt 0:00:04]} Rd6 {[%emt 0:00:06]} 56. Ra8 {[%emt 0:00:03]} Ke6 {[%emt 0:00:17]} 57. Ke2 {[%emt 0:00:05]} Rb6 {[%emt 0:00:13]} 58. Re8+ {[%emt 0:00:04]} Kd5 {[%emt 0:00:24]} 59. Rd8+ {[%emt 0:00:04]} Kc4 {[%emt 0:00:56]} 60. Rc8+ {[%emt 0:00:05]} Kd4 {[%emt 0:00:09]} 61. Rd8+ {[%emt 0:00:04]} Kc5 {[%emt 0:00:07]} 62. Rc8+ {[%emt 0:00:16]} Rc6 {[%emt 0:00:20]} 63. Re8 {[%emt 0:00:14]} Kd5 {[%emt 0:00:12]} 64. Rd8+ {[%emt 0:00:05]} Rd6 {[%emt 0:00:05]} 65. Ra8 {[%emt 0:00:04]} Ke6 {[%emt 0:01:31]} 66. Re8+ {[%emt 0:00:03]} Kf6 {[%emt 0:00:08]} 67. Rf8+ {[%emt 0:00:04]} Ke7 {[%emt 0:00:07]} 68. Ra8 {[%emt 0:00:08]} Rb6 {[%emt 0:00:14]} 69. Kf2 {[%emt 0:01:32]} Rb2+ {[%emt 0:00:21]} 70. Kf1 {[%emt 0:00:18]} Ke6 {[%emt 0:00:31]} 71. Ra5 {[%emt 0:00:23]} Kf5 {[%emt 0:01:31]} 72. Rc5 {[%emt 0:00:35]} Ra2 {[%emt 0:00:31]} 73. Rb5 {[%emt 0:00:05]} Ke6 {[%emt 0:00:52]} 74. Rb8 {[%emt 0:00:16]} Kd5 {[%emt 0:00:40]} 75. Rd8+ {[%emt 0:00:21]} Kc4 {[%emt 0:00:07]} 76. Rd7 {[%emt 0:01:07]} Ra1+ {[%emt 0:00:42]} 77. Ke2 {[%emt 0:00:19]} Ra2+ {[%emt 0:00:06]} 78. Kf1 {[%emt 0:00:04]} Ra3 {[%emt 0:01:55]} 79. Ke2 {[%emt 0:00:10]} Ra2+ {[%emt 0:00:14]} 80. Kf1 {[%emt 0:00:04]} Ra5 {[%emt 0:00:03]} 81. Ke2 {[%emt 0:00:07]} Rd5 {[%emt 0:00:27]} 82. Ra7 {[%emt 0:00:05]} Rb5 {[%emt 0:00:13]} 83. Rc7+ {[%emt 0:00:05]} Rc5 {[%emt 0:00:31]} 84. Rd7 {[%emt 0:00:05]} Rb5 {[%emt 0:00:19]} 85. Rc7+ {[%emt 0:00:04]} Kd5 {[%emt 0:00:05]} 86. Rd7+ {[%emt 0:00:07]} Ke6 {[%emt 0:00:06]} 87. Rd8 {[%emt 0:00:05]} Rb3 {[%emt 0:00:12]} 88. Re8+ {[%emt 0:00:11]} Kf6 {[%emt 0:00:05]} 89. Rf8+ {[%emt 0:00:04]} Ke7 {[%emt 0:00:05]} 90. Ra8 {[%emt 0:00:03]} Re3+ {[%emt 0:00:06]} 91. Kf2 {[%emt 0:00:04]} Ke6 {[%emt 0:00:08]} 92. Re8+ {[%emt 0:00:04]} Kd5 {[%emt 0:00:23]} 93. Rd8+ {[%emt 0:00:04]} Kc4 {[%emt 0:00:06]} 94. Rc8+ {[%emt 0:00:03]} Kd3 {[%emt 0:00:11]} 95. Rd8+ {[%emt 0:00:03]} Kc2 {[%emt 0:00:07]} 96. Rc8+ {[%emt 0:00:27]} Rc3 {[%emt 0:00:11]} 97. Rd8 {[%emt 0:00:09]} Rd3 {[%emt 0:00:08]} 98. Rc8+ {[%emt 0:00:05]} Kd2 {[%emt 0:00:05]} 99. Rc5 {[%emt 0:00:27]} Re3 {[%emt 0:00:10]} 100. Rd5+ {[%emt 0:00:04]} Kc3 {[%emt 0:00:07]} 101. Rd8 {[%emt 0:00:05]} e4 {[%emt 0:01:03]} 1/2-1/2

[Event "4NCL 2021-22"]
[Site "England"]
[Date "2022.02.13"]
[Round "4.15"]
[White "Povah, Nigel E"]
[Black "Sowray, Peter J"]
[Result "0-1"]
[ECO "D00"]
[WhiteElo "2245"]
[BlackElo "2226"]
[Annotator "NA"]
[PlyCount "48"]
[EventDate "2021.11.27"]
[EventType "team-tourn"]
[EventCountry "ENG"]
[SourceTitle "playchess.com"]
[Source "ChessBase"]
[SourceQuality "1"]
[TimeControl "40/6000+30:3000+30"]

1. d4 {[%emt 0:00:04]} d5 {[%emt 0:00:14]} 2. Bf4 {[%emt 0:00:09]} c5 {[%emt 0:00:35]} 3. e3 {[%emt 0:00:12]} Nc6 {[%emt 0:01:09]} 4. c3 {[%emt 0:00:41]} Bf5 {[%emt 0:02:43]} 5. Nd2 {[%emt 0:07:09]} e6 {[%emt 0:01:38]} 6. Ngf3 {[%emt 0:09:33]} Qb6 {[%emt 0:03:35]} 7. Nh4 {[%emt 0:07:29]} Be4 {[%emt 0:07:49]} 8. f3 {[%emt 0:01:10]} Bg6 {[%emt 0:00:22]} 9. Nxg6 {[%emt 0:00:38]} hxg6 {[%emt 0:00:04]} 10. Qb3 {[%emt 0:01:53]} Nf6 {[%emt 0:09:23]} 11. h3 {[%emt 0:04:31]} Be7 {[%emt 0:03:53]} 12. Bb5 {[%emt 0:14:49]} O-O {[%emt 0:05:02]} 13. O-O {[%emt 0:05:22]} c4 {[%emt 0:12:38]} 14. Qa4 {[%emt 0:00:24]} e5 {[%emt 0:00:15]} 15. Bg5 {[%emt 0:11:32]} exd4 {[%emt 0:01:49]} 16. exd4 {[%emt 0:00:32]} Ne5 {[%emt 0:04:06]} 17. Kh1 {[%emt 0:15:22]} Nd3 {[%emt 0:00:20]} 18. Rab1 {[%emt 0:03:00]} Qc7 {[%emt 0:09:50]} 19. Qd1 {[%emt 0:02:59]} a6 {[%emt 0:05:04]} 20. Ba4 {[%emt 0:01:26]} Nh5 {[%emt 0:00:42]} 21. Be3 {[%emt 0:05:31]} Qg3 {[%emt 0:02:57]} 22. Rg1 {[%emt 0:05:11]} Bd6 {[%emt 0:00:52]} 23. Nf1 {[%emt 0:00:15]} Qh2+ {[%emt 0:00:12]} 24. Nxh2 {[%emt 0:00:05]} Ng3# {[%emt 0:00:47]} 0-1

[Event "4NCL 2021-22"]
[Site "England"]
[Date "2022.02.13"]
[Round "4.16"]
[White "Ratnesan, Radha"]
[Black "Kalaiyalahan, Akshaya"]
[Result "0-1"]
[ECO "D02"]
[WhiteElo "1623"]
[BlackElo "2208"]
[Annotator "ChessBase"]
[PlyCount "102"]
[EventDate "2021.11.27"]
[EventType "team-tourn"]
[EventCountry "ENG"]
[SourceTitle "playchess.com"]
[Source "ChessBase"]
[SourceQuality "1"]
[TimeControl "40/6000+30:3000+30"]

1. d4 {[%emt 0:00:03]} d5 {[%emt 0:00:06]} 2. Nf3 {[%emt 0:00:05]} Nf6 {[%emt 0:00:07]} 3. Bf4 {[%emt 0:00:17]} c5 {[%emt 0:00:20]} 4. e3 {[%emt 0:00:18]} Nc6 {[%emt 0:00:44]} 5. c3 {[%emt 0:01:11]} e6 {[%emt 0:01:07]} 6. Bd3 {[%emt 0:01:15]} Bd6 {[%emt 0:00:29]} 7. Bg3 {[%emt 0:01:07]} O-O {[%emt 0:01:51]} 8. Nbd2 {[%emt 0:02:35]} a6 {[%emt 0:07:17]} 9. a4 {[%emt 0:04:55]} Re8 {[%emt 0:02:25]} 10. O-O {[%emt 0:03:41]} Bxg3 {[%emt 0:10:28]} 11. hxg3 {[%emt 0:00:12]} b6 {[%emt 0:00:12]} 12. Re1 {[%emt 0:25:55]} Bb7 {[%emt 0:00:49]} 13. Ne5 {[%emt 0:05:51]} Nxe5 {[%emt 0:10:18]} 14. dxe5 {[%emt 0:00:03]} Nd7 {[%emt 0:01:58]} 15. f4 {[%emt 0:05:53]} Nf8 {[%emt 0:05:25]} 16. Nf3 {[%emt 0:05:32]} Qd7 {[%emt 0:08:59]} 17. Bc2 {[%emt 0:08:29]} Red8 {[%emt 0:02:05]} 18. e4 {[%emt 0:09:53]} dxe4 {[%emt 0:10:16]} 19. Qxd7 {[%emt 0:00:55]} Rxd7 {[%emt 0:00:05]} 20. Bxe4 {[%emt 0:00:30]} Bxe4 {[%emt 0:00:05]} 21. Rxe4 {[%emt 0:00:20]} h6 {[%emt 0:00:19]} 22. Re2 {[%emt 0:01:42]} Rad8 {[%emt 0:00:05]} 23. Kf2 {[%emt 0:01:58]} Ng6 {[%emt 0:00:45]} 24. Ke1 {[%emt 0:05:30]} Ne7 {[%emt 0:00:19]} 25. Nd2 {[%emt 0:02:29]} Nf5 {[%emt 0:05:04]} 26. Ne4 {[%emt 0:00:56]} a5 {[%emt 0:08:11]} 27. Rb1 {[%emt 0:05:40]} h5 {[%emt 0:01:56]} 28. Kf2 {[%emt 0:02:07]} Kh7 {[%emt 0:01:35]} 29. Rh1 {[%emt 0:01:16]} Kg6 {[%emt 0:00:04]} 30. Ng5 {[%emt 0:03:23]} Nh6 {[%emt 0:03:04]} 31. Rc1 {[%emt 0:02:34]} Rd1 {[%emt 0:08:36]} 32. Rxd1 {[%emt 0:02:17]} Rxd1 {[%emt 0:00:05]} 33. Rc2 {[%emt 0:02:17]} Ra1 {[%emt 0:11:12]} 34. Ne4 {[%emt 0:01:34]} Rxa4 {[%emt 0:00:13]} 35. Nd6 {[%emt 0:00:24]} Ra2 {[%emt 0:02:25]} 36. Ke2 {[%emt 0:01:22]} Nf5 {[%emt 0:02:05]} 37. Kf2 {[%emt 0:01:42]} a4 {[%emt 0:00:55]} 38. Nb5 {[%emt 0:00:24]} Ne7 {[%emt 0:02:52]} 39. Kf3 {[%emt 0:01:26]} Nd5 {[%emt 0:00:49]} 40. Ke4 {[%emt 0:01:20]} Ra1 {[%emt 0:02:51]} 41. Re2 {[%emt 0:06:42]} Rd1 {[%emt 0:05:52]} 42. c4 {[%emt 0:10:57]} Ne7 {[%emt 0:03:10]} 43. Nd6 {[%emt 0:06:11]} Rd4+ {[%emt 0:00:18]} 44. Kf3 {[%emt 0:00:34]} Nf5 {[%emt 0:01:13]} 45. Nc8 {[%emt 0:01:32]} Rxc4 {[%emt 0:00:35]} 46. Kf2 {[%emt 0:01:14]} Rb4 {[%emt 0:01:25]} 47. Rd2 {[%emt 0:00:18]} Rb3 {[%emt 0:01:01]} 48. Nd6 {[%emt 0:00:29]} Nxg3 {[%emt 0:00:36]} 49. Rc2 {[%emt 0:01:52]} h4 {[%emt 0:02:12]} 50. Rd2 {[%emt 0:01:49]} Nh5 {[%emt 0:02:00]} 51. f5+ {[%emt 0:03:04]} exf5 {[%emt 0:00:13]} 0-1

[Event "4NCL 2021-22"]
[Site "England"]
[Date "2022.02.13"]
[Round "4.20"]
[White "Chow, Samuel"]
[Black "Redmond, John P."]
[Result "1/2-1/2"]
[ECO "D41"]
[WhiteElo "2400"]
[BlackElo "2210"]
[Annotator "NA"]
[PlyCount "44"]
[EventDate "2021.11.27"]
[EventType "team-tourn"]
[EventCountry "ENG"]
[SourceTitle "playchess.com"]
[Source "ChessBase"]
[SourceQuality "1"]
[TimeControl "40/6000+30:3000+30"]

1. d4 {[%emt 0:00:08]} d5 {[%emt 0:00:37]} 2. c4 {[%emt 0:00:23]} e6 {[%emt 0:00:12]} 3. Nf3 {[%emt 0:00:40]} Nf6 {[%emt 0:00:10]} 4. Nc3 {[%emt 0:00:38]} c5 {[%emt 0:00:24]} 5. cxd5 {[%emt 0:01:09]} cxd4 {[%emt 0:00:14]} 6. Qxd4 {[%emt 0:01:20]} exd5 {[%emt 0:00:10]} 7. e4 {[%emt 0:01:03]} dxe4 {[%emt 0:00:21]} 8. Qxd8+ {[%emt 0:00:51]} Kxd8 {[%emt 0:00:07]} 9. Ng5 {[%emt 0:00:19]} Be6 {[%emt 0:00:12]} 10. Nxe6+ {[%emt 0:01:21]} fxe6 {[%emt 0:00:08]} 11. Bg5 {[%emt 0:01:05]} Ke8 {[%emt 0:00:38]} 12. Bb5+ {[%emt 0:01:15]} Kf7 {[%emt 0:12:38]} 13. O-O $11 {[%emt 0:01:20]} Be7 {[%emt 0:11:01]} 14. Rad1 {[%emt 0:14:02]} Na6 {[%emt 0:18:40]} 15. Bxf6 {[%emt 0:12:49]} gxf6 {[%emt 0:00:30]} 16. Nxe4 {[%emt 0:00:18]} Rhd8 {[%emt 0:03:19]} 17. Rfe1 {[%emt 0:06:08]} f5 {[%emt 0:16:55]} 18. Ng3 {[%emt 0:04:34]} Bb4 {[%emt 0:06:09]} 19. Rf1 {[%emt 0:10:47]} Bd2 {[%emt 0:06:58]} 20. Bc4 {[%emt 0:01:25]} Kf6 {[%emt 0:01:16]} 21. Nh5+ {[%emt 0:03:58]} Kg6 {[%emt 0:00:27]} 22. Ng3 {[%emt 0:00:55]} Kf6 {[%emt 0:00:08]} 1/2-1/2

[Event "4NCL 2021-22"]
[Site "England"]
[Date "2022.02.13"]
[Round "4.22"]
[White "Han, Yichen"]
[Black "Zeidler, Sven P."]
[Result "1/2-1/2"]
[ECO "B08"]
[WhiteElo "2347"]
[BlackElo "2172"]
[Annotator "ChessBase"]
[PlyCount "96"]
[EventDate "2021.11.27"]
[EventType "team-tourn"]
[EventCountry "ENG"]
[SourceTitle "playchess.com"]
[Source "ChessBase"]
[SourceQuality "1"]
[TimeControl "40/6000+30:3000+30"]

1. e4 {[%emt 0:00:02]} Nc6 {[%emt 0:00:05]} 2. Nf3 {[%emt 0:00:15]} d6 {[%emt 0:00:06]} 3. d4 {[%emt 0:00:50]} Nf6 {[%emt 0:00:08]} 4. Nc3 {[%emt 0:00:07]} g6 {[%emt 0:00:05]} 5. Be3 {[%emt 0:03:21]} Bg7 {[%emt 0:05:09]} 6. h3 {[%emt 0:03:58]} O-O {[%emt 0:00:21]} 7. Qd2 {[%emt 0:01:35]} e5 {[%emt 0:02:03]} 8. d5 {[%emt 0:08:01]} Ne7 {[%emt 0:00:52]} 9. g4 {[%emt 0:01:58]} a6 {[%emt 0:15:17]} 10. O-O-O {[%emt 0:09:29]} b5 {[%emt 0:01:22]} 11. a3 {[%emt 0:02:14]} Bd7 {[%emt 0:08:31]} 12. Ne1 {[%emt 0:02:51]} a5 {[%emt 0:17:08]} 13. f3 {[%emt 0:04:29]} b4 {[%emt 0:00:46]} 14. Nb1 {[%emt 0:00:11]} Qb8 {[%emt 0:03:28]} 15. h4 {[%emt 0:12:49]} Qb7 {[%emt 0:10:33]} 16. Bh3 {[%emt 0:08:56]} bxa3 {[%emt 0:04:38]} 17. Nxa3 {[%emt 0:00:30]} Rfb8 {[%emt 0:00:39]} 18. Nd3 {[%emt 0:05:50]} Nfxd5 {[%emt 0:02:05]} 19. Bg5 {[%emt 0:09:15]} Nc8 {[%emt 0:05:20]} 20. c3 {[%emt 0:02:33]} Nf4 {[%emt 0:04:30]} 21. Bxf4 {[%emt 0:07:09]} exf4 {[%emt 0:00:08]} 22. g5 {[%emt 0:01:03]} Ba4 {[%emt 0:03:46]} 23. Rde1 {[%emt 0:02:33]} Ne7 {[%emt 0:04:34]} 24. Nxf4 {[%emt 0:05:53]} Qb3 {[%emt 0:01:08]} 25. Bf1 {[%emt 0:00:52]} Qa2 {[%emt 0:01:10]} 26. Bd3 {[%emt 0:04:12]} Rb3 {[%emt 0:02:13]} 27. Nb1 {[%emt 0:04:13]} Rab8 {[%emt 0:01:18]} 28. Bc4 {[%emt 0:01:04]} Qxb2+ {[%emt 0:05:59]} 29. Qxb2 {[%emt 0:00:06]} Rxb2 {[%emt 0:00:07]} 30. Bd3 {[%emt 0:00:07]} Rf2 {[%emt 0:01:45]} 31. Be2 {[%emt 0:02:02]} Bb5 {[%emt 0:02:02]} 32. c4 {[%emt 0:00:52]} Ba4 {[%emt 0:00:37]} 33. Kd2 {[%emt 0:01:53]} Nc6 {[%emt 0:01:01]} 34. Nd3 {[%emt 0:00:55]} Rg2 {[%emt 0:00:22]} 35. Reg1 {[%emt 0:01:28]} Rxg1 {[%emt 0:00:19]} 36. Rxg1 {[%emt 0:00:02]} Ne5 {[%emt 0:00:53]} 37. Rc1 {[%emt 0:02:15]} Nxd3 {[%emt 0:02:01]} 38. Bxd3 {[%emt 0:00:56]} Bd4 {[%emt 0:00:14]} 39. Be2 {[%emt 0:01:44]} Rb2+ {[%emt 0:01:40]} 40. Kd3 {[%emt 0:01:03]} c5 {[%emt 0:00:29]} 41. Nc3 {[%emt 0:03:04]} Bc6 {[%emt 0:04:03]} 42. Bd1 {[%emt 0:05:33]} Kf8 {[%emt 0:11:09]} 43. Ra1 {[%emt 0:05:12]} a4 {[%emt 0:00:24]} 44. Nxa4 {[%emt 0:02:14]} Rd2+ {[%emt 0:05:42]} 45. Kxd2 {[%emt 0:00:49]} Bxa1 {[%emt 0:00:07]} 46. Nc3 {[%emt 0:01:13]} Ke7 {[%emt 0:00:35]} 47. Nd5+ {[%emt 0:05:27]} Ke6 {[%emt 0:01:06]} 48. f4 {[%emt 0:01:16]} Bxd5 {[%emt 0:03:05]} 1/2-1/2